fUSD/lending_fUSD_20240220
["ID","MTS","AMOUNT","RATE_DAILY","PERIOD"]
[314608360,1708450315350,-500.0,0.00048219,30]
[314608361,1708450315361,-500.0,0.00048219,30]
[314608362,1708450315373,-500.0,0.00048219,30]
[314608363,1708450315382,-500.0,0.00048219,30]
[314608364,1708450315392,-500.0,0.00048219,30]
[314608365,1708450315401,-500.0,0.00048219,30]
[314608366,1708450315411,-1342.2927,0.0004822,41]
[314608367,1708450315420,-153.0,0.00048271,30]
[314608368,1708450315429,-150.0,0.00048295,8]
[314608369,1708450315439,-150.0,0.00048299,30]
[314608370,1708450315448,-247.73629298,0.0004831,30]
[314608371,1708450315458,-154.33839749,0.00048319,30]
[314608372,1708450315466,-154.33839749,0.00048334,30]
[314608373,1708450315476,-153.19552475,0.00048342,30]
[314608374,1708450315485,-951.37034958,0.00048362,30]
[314608375,1708450315494,-247.73629298,0.00048363,30]
[314608376,1708450315504,-150.0,0.00048373,30]
[314608377,1708450315512,-951.37034958,0.00048376,30]
[314608378,1708450315522,-154.64659138,0.00048386,30]
[314608379,1708450315531,-196.35429008,0.00048386,30]
[314608380,1708450315540,-167.0,0.00048394,28]
[314608381,1708450315550,-637.48,0.000484,7]
[314608382,1708450315559,-182.45349069,0.000484,59]
[314608383,1708450315569,-156.41,0.00048407,2]
[314608384,1708450315578,-6761.4,0.0004841,30]
[314608385,1708450315587,-6761.4,0.0004841,30]
[314608386,1708450315597,-247.73629298,0.00048423,30]
[314608387,1708450315606,-150.0,0.00048443,8]
[314608388,1708450315615,-150.72003919,0.00048445,30]
[314608389,1708450315627,-150.0,0.00048447,30]
[314608390,1708450315636,-1516.2146857,0.00048448,48]
[314608391,1708450315646,-223.58388203,0.0004845,4]
[314608392,1708450315655,-766.4703669,0.00048451,5]
[314608393,1708450315664,-154.82722731,0.00048452,30]
[314608394,1708450315673,-247.73629298,0.00048453,30]
[314608395,1708450315683,-154.33839749,0.00048471,30]
[314608396,1708450315692,-500.0,0.00048493,30]
[314608397,1708450315701,-500.0,0.00048493,30]
[314608398,1708450315710,-500.0,0.00048493,30]
[314608399,1708450315719,-308.3,0.00048493,30]
[314608400,1708450315728,-500.0,0.00048493,30]
[314608401,1708450315737,-500.0,0.00048493,30]
[314608402,1708450315746,-500.0,0.00048493,30]
[314608403,1708450315754,-500.0,0.00048493,30]
[314608404,1708450315763,-500.0,0.00048493,30]
[314608405,1708450315773,-500.0,0.00048493,30]
[314608406,1708450315782,-500.0,0.00048493,30]
[314608407,1708450315790,-500.0,0.00048493,30]
[314608408,1708450315800,-446.09,0.00048493,30]
[314608409,1708450315809,-541.82,0.00048493,30]
[314608410,1708450315818,-500.0,0.00048493,30]
[314608411,1708450315827,-500.0,0.00048493,30]
[314608412,1708450315836,-500.0,0.00048493,30]
[314608413,1708450315845,-500.0,0.00048493,30]
[314608414,1708450315855,-500.0,0.00048493,30]
[314608415,1708450315864,-516.49,0.00048493,30]
[314608416,1708450315876,-500.0,0.00048493,30]
[314608417,1708450315886,-500.0,0.00048493,30]
[314608418,1708450315895,-500.0,0.00048493,30]
[314608419,1708450315904,-535.02644965,0.00048493,30]
[314608420,1708450315913,-500.0,0.00048493,30]
[314608421,1708450315923,-500.0,0.00048493,30]
[314608422,1708450315932,-536.73753223,0.00048493,30]
[314608423,1708450315942,-367.20004552,0.00048493,30]
[314608424,1708450315951,-500.0,0.00048493,30]
[314608425,1708450315961,-500.0,0.00048493,2]
[314608426,1708450315971,-161.64,0.00048493,30]
[314608427,1708450315980,-1441.53,0.00048493,30]
[314608428,1708450315990,-500.0,0.00048493,30]
[314608429,1708450315999,-299.42030584,0.00048493,30]
[314608430,1708450316008,-500.0,0.00048493,30]
[314608431,1708450316018,-500.0,0.00048493,30]
[314608432,1708450316027,-500.0,0.00048493,30]
[314608433,1708450316036,-236.8092754,0.00048493,30]
[314608434,1708450316046,-500.0,0.00048493,30]
[314608435,1708450316056,-500.0,0.00048493,30]
[314608436,1708450316065,-392.87,0.00048493,30]
[314608437,1708450316075,-500.0,0.00048493,30]
[314608438,1708450316084,-500.0,0.00048493,30]
[314608439,1708450316094,-500.0,0.00048493,30]
[314608440,1708450316103,-500.0,0.00048493,30]
[314608441,1708450316113,-523.57599819,0.00048493,30]
[314608442,1708450316126,-506.37,0.00048493,30]
[314608443,1708450316136,-500.0,0.00048493,30]
[314608444,1708450316145,-500.0,0.00048493,30]
[314608445,1708450316154,-500.0,0.00048493,30]
[314608446,1708450316163,-500.0,0.00048493,30]
[314608447,1708450316172,-365.74888393,0.00048493,30]
[314608448,1708450316181,-500.0,0.00048493,30]
[314608449,1708450316191,-500.0,0.00048493,30]
[314608450,1708450316200,-500.0,0.00048493,30]
[314608451,1708450316209,-500.0,0.00048493,30]
[314608452,1708450316219,-500.0,0.00048493,30]
[314608453,1708450316228,-1270.73,0.00048493,30]
[314608454,1708450316238,-500.0,0.00048493,30]
[314608455,1708450316247,-500.0,0.00048493,30]
[314608456,1708450316260,-500.0,0.00048493,30]
[314608457,1708450316270,-500.0,0.00048493,30]
[314608458,1708450316280,-500.0,0.00048493,30]
[314608459,1708450316289,-500.0,0.00048493,30]
[314608460,1708450316298,-622.92136183,0.00048493,30]
[314608461,1708450316307,-176.45,0.00048493,30]
[314608462,1708450316317,-500.0,0.00048493,30]
[314608463,1708450316327,-500.0,0.00048493,30]
[314608464,1708450316336,-349.37142224,0.00048493,30]
[314608465,1708450316347,-500.0,0.00048493,30]
[314608466,1708450316356,-500.0,0.00048493,30]
[314608467,1708450316367,-500.0,0.00048493,30]
[314608468,1708450316381,-427.38451308,0.00048493,30]
[314608469,1708450316390,-500.0,0.00048493,30]
[314608470,1708450316399,-500.0,0.00048493,30]
[314608471,1708450316408,-500.0,0.00048493,30]
[314608472,1708450316418,-500.0,0.00048493,30]
[314608473,1708450316427,-500.0,0.00048493,30]
[314608474,1708450316437,-500.0,0.00048493,30]
[314608475,1708450316446,-500.0,0.00048493,30]
[314608476,1708450316455,-500.0,0.00048493,30]
[314608477,1708450316465,-500.0,0.00048493,30]
[314608478,1708450316475,-579.40602845,0.00048493,30]
[314608479,1708450316484,-500.0,0.00048493,30]
[314608480,1708450316493,-500.0,0.00048493,30]
[314608481,1708450316503,-500.0,0.00048493,30]
[314608482,1708450316512,-500.0,0.00048493,30]
[314608483,1708450316521,-500.0,0.00048493,30]
[314608484,1708450316531,-500.0,0.00048493,30]
[314608485,1708450316542,-500.0,0.00048493,30]
[314608486,1708450316552,-500.0,0.00048493,30]
[314608487,1708450316561,-500.0,0.00048493,30]
[314608488,1708450316571,-500.0,0.00048493,30]
[314608489,1708450316580,-500.0,0.00048493,30]
[314608490,1708450316590,-550.97264739,0.00048493,30]
[314608491,1708450316599,-500.0,0.00048493,30]
[314608492,1708450316608,-500.0,0.00048493,30]
[314608493,1708450316617,-500.0,0.00048493,30]
[314608494,1708450316631,-734.91,0.00048493,30]
[314608495,1708450316640,-500.0,0.00048493,30]
[314608496,1708450316649,-500.0,0.00048493,30]
[314608497,1708450316658,-500.0,0.00048493,30]
[314608498,1708450316668,-500.0,0.00048493,30]
[314608499,1708450316677,-208.15967882,0.00048493,30]
[314608500,1708450316686,-164.67,0.00048493,30]
[314608501,1708450316695,-197.99,0.00048493,30]
[314608502,1708450316704,-535.82421307,0.00048493,30]
[314608503,1708450316713,-500.0,0.00048493,30]
[314608504,1708450316723,-500.0,0.00048493,30]
[314608505,1708450316732,-500.0,0.00048493,30]
[314608506,1708450316741,-500.0,0.00048493,30]
[314608507,1708450316751,-262.16338056,0.00048493,30]
[314608508,1708450316761,-500.0,0.00048493,30]
[314608509,1708450316770,-500.0,0.00048493,30]
[314608510,1708450316779,-500.0,0.00048493,30]
[314608511,1708450316789,-500.0,0.00048493,30]
[314608512,1708450316798,-500.0,0.00048493,30]
[314608513,1708450316808,-500.0,0.00048493,30]
[314608514,1708450316817,-529.23879601,0.00048493,30]
[314608515,1708450316826,-500.0,0.00048493,30]
[314608516,1708450316835,-500.0,0.00048493,30]
[314608517,1708450316844,-500.0,0.00048493,30]
[314608518,1708450316853,-545.42199028,0.00048493,30]
[314608519,1708450316863,-500.0,0.00048493,30]
[314608520,1708450316874,-500.0,0.00048493,30]
[314608521,1708450316883,-500.0,0.00048493,30]
[314608522,1708450316894,-500.0,0.00048493,30]
[314608523,1708450316903,-500.0,0.00048493,30]
[314608524,1708450316913,-500.0,0.00048493,30]
[314608525,1708450316923,-500.0,0.00048493,30]
[314608526,1708450316932,-500.0,0.00048493,30]
[314608527,1708450316941,-387.15867702,0.00048493,30]
[314608528,1708450316951,-500.0,0.00048493,30]
[314608529,1708450316960,-500.0,0.00048493,30]
[314608530,1708450316970,-150.0,0.00048493,30]
[314608531,1708450316980,-500.0,0.00048493,30]
[314608532,1708450316990,-500.0,0.00048493,30]
[314608533,1708450317000,-500.0,0.00048493,30]
[314608534,1708450317009,-500.0,0.00048493,30]
[314608535,1708450317019,-641.6306973,0.00048493,30]
[314608536,1708450317029,-500.0,0.00048493,30]
[314608537,1708450317039,-500.0,0.00048493,30]
[314608538,1708450317049,-500.0,0.00048493,30]
[314608539,1708450317059,-393.35,0.00048493,30]
[314608540,1708450317068,-500.0,0.00048493,30]
[314608541,1708450317206,-465.77878021,0.00048493,30]
[314608542,1708450317218,-500.0,0.00048493,30]
[314608543,1708450317227,-500.0,0.00048493,30]
[314608544,1708450317237,-500.0,0.00048493,30]
[314608545,1708450317246,-500.0,0.00048493,30]
[314608546,1708450317255,-500.0,0.00048493,30]
[314608547,1708450317264,-2166.93,0.00048493,30]
[314608548,1708450317275,-500.0,0.00048493,30]
[314608549,1708450317284,-500.0,0.00048493,30]
[314608550,1708450317293,-500.0,0.00048493,30]
[314608551,1708450317303,-500.0,0.00048493,30]
[314608552,1708450317312,-500.0,0.00048493,30]
[314608553,1708450317321,-500.0,0.00048493,30]
[314608554,1708450317330,-500.0,0.00048493,30]
[314608555,1708450317340,-457.41851985,0.00048493,30]
[314608556,1708450317350,-538.82814425,0.00048493,30]
[314608557,1708450317360,-500.0,0.00048493,30]
[314608558,1708450317370,-500.0,0.00048493,30]
[314608559,1708450317383,-500.0,0.00048493,30]
[314608560,1708450317392,-500.0,0.00048493,30]
[314608561,1708450317402,-500.0,0.00048493,30]
[314608562,1708450317412,-534.52,0.00048493,30]
[314608563,1708450317422,-500.0,0.00048493,30]
[314608564,1708450317431,-500.0,0.00048493,30]
[314608565,1708450317441,-500.0,0.00048493,30]
[314608566,1708450317451,-560.11,0.00048493,30]
[314608567,1708450317460,-500.0,0.00048493,30]
[314608568,1708450317470,-500.0,0.00048493,30]
[314608569,1708450317479,-2578.86,0.00048493,30]
[314608570,1708450317489,-500.0,0.00048493,30]
[314608571,1708450317498,-500.0,0.00048493,30]
[314608572,1708450317508,-500.0,0.00048493,30]
[314608573,1708450317517,-500.0,0.00048493,30]
[314608574,1708450317526,-500.0,0.00048493,30]
[314608575,1708450317536,-500.0,0.00048493,30]
[314608576,1708450317545,-381.3,0.00048493,30]
[314608577,1708450317555,-542.64,0.00048493,30]
[314608578,1708450317565,-500.0,0.00048493,30]
[314608579,1708450317574,-500.0,0.00048493,30]
[314608580,1708450317584,-500.0,0.00048493,30]
[314608581,1708450317593,-500.0,0.00048493,30]
[314608582,1708450317602,-566.51,0.00048493,30]
[314608583,1708450317612,-500.0,0.00048493,30]
[314608584,1708450317623,-500.0,0.00048493,30]
[314608585,1708450317633,-500.0,0.00048493,30]
[314608586,1708450317644,-500.0,0.00048493,30]
[314608587,1708450317653,-5958.34,0.00048493,30]
[314608588,1708450317663,-500.0,0.00048493,30]
[314608589,1708450317673,-500.0,0.00048493,30]
[314608590,1708450317682,-500.0,0.00048493,30]
[314608591,1708450317692,-500.0,0.00048493,30]
[314608592,1708450317701,-500.0,0.00048493,30]
[314608593,1708450317711,-9351.93,0.00048493,30]
[314608594,1708450317721,-500.0,0.00048493,30]
[314608595,1708450317731,-339.36705039,0.00048493,30]
[314608596,1708450317740,-500.0,0.00048493,30]
[314608597,1708450317751,-500.0,0.00048493,30]
[314608598,1708450317760,-500.0,0.00048493,30]
[314608599,1708450317770,-500.0,0.00048493,30]
[314608600,1708450317779,-500.0,0.00048493,30]
[314608601,1708450317789,-543.27,0.00048493,30]
[314608602,1708450317798,-500.0,0.00048493,30]
[314608603,1708450317807,-568.16619988,0.00048493,30]
[314608604,1708450317817,-500.0,0.00048493,30]
[314608605,1708450317827,-154.1,0.00048493,30]
[314608606,1708450317837,-562.82605949,0.00048493,30]
[314608607,1708450317846,-500.0,0.00048493,30]
[314608608,1708450317856,-1749.56,0.00048493,30]
[314608609,1708450317866,-522.33,0.00048493,30]
[314608610,1708450317877,-500.0,0.00048493,30]
[314608611,1708450317887,-500.0,0.00048493,30]
[314608612,1708450317896,-500.0,0.00048493,30]
[314608613,1708450317906,-500.0,0.00048493,30]
[314608614,1708450317916,-1234.3,0.00048493,30]
[314608615,1708450317926,-526.02,0.00048493,30]
[314608616,1708450317935,-500.0,0.00048493,30]
[314608617,1708450317944,-500.0,0.00048493,30]
[314608618,1708450317954,-607.51,0.00048493,30]
[314608619,1708450317963,-399.16,0.00048493,30]
[314608620,1708450317973,-500.0,0.00048493,30]
[314608621,1708450317983,-500.0,0.00048493,30]
[314608622,1708450317992,-500.0,0.00048493,30]
[314608623,1708450318002,-500.0,0.00048493,30]
[314608624,1708450318013,-500.0,0.00048493,30]
[314608625,1708450318023,-514.34,0.00048493,30]
[314608626,1708450318032,-795.95,0.00048493,30]
[314608627,1708450318042,-500.0,0.00048493,30]
[314608628,1708450318052,-500.0,0.00048493,30]
[314608629,1708450318062,-500.0,0.00048493,30]
[314608630,1708450318072,-500.0,0.00048493,30]
[314608631,1708450318082,-611.91,0.00048493,30]
[314608632,1708450318091,-500.0,0.00048493,30]
[314608633,1708450318101,-500.0,0.00048493,30]
[314608634,1708450318110,-500.0,0.00048493,30]
[314608635,1708450318120,-500.0,0.00048493,30]
[314608636,1708450318132,-500.0,0.00048493,30]
[314608637,1708450318140,-500.0,0.00048493,30]
[314608638,1708450318150,-500.0,0.00048493,30]
[314608639,1708450318159,-500.0,0.00048493,30]
[314608640,1708450318169,-500.0,0.00048493,30]
[314608641,1708450318179,-580.83,0.00048493,30]
[314608642,1708450318188,-379.80309236,0.00048493,30]
[314608643,1708450318198,-500.0,0.00048493,30]
[314608644,1708450318207,-500.0,0.00048493,30]
[314608645,1708450318216,-500.0,0.00048493,30]
[314608646,1708450318226,-500.0,0.00048493,30]
[314608647,1708450318235,-500.0,0.00048493,30]
[314608648,1708450318245,-500.0,0.00048493,30]
[314608649,1708450318256,-500.0,0.00048493,30]
[314608650,1708450318266,-500.0,0.00048493,30]
[314608651,1708450318278,-1571.69,0.00048493,30]
[314608652,1708450318293,-185.14,0.00048493,30]
[314608653,1708450318304,-500.0,0.00048493,30]
[314608654,1708450318313,-500.0,0.00048493,30]
[314608655,1708450318323,-889.56,0.00048493,30]
[314608656,1708450318333,-635.03482714,0.00048493,30]
[314608657,1708450318342,-500.0,0.00048493,30]
[314608658,1708450318352,-602.7398421,0.00048493,30]
[314608659,1708450318362,-500.0,0.00048493,30]
[314608660,1708450318371,-500.0,0.00048493,30]
[314608661,1708450318383,-500.0,0.00048493,30]
[314608662,1708450318392,-224.95265536,0.00048493,30]
[314608663,1708450318401,-2031.89,0.00048493,30]
[314608664,1708450318410,-500.0,0.00048493,30]
[314608665,1708450318420,-500.0,0.00048493,30]
[314608666,1708450318430,-890.15,0.00048493,30]
[314608667,1708450318439,-500.0,0.00048493,30]
[314608668,1708450318448,-500.0,0.00048493,30]
[314608669,1708450318458,-1056.5,0.00048493,30]
[314608670,1708450318468,-500.0,0.00048493,30]
[314608671,1708450318478,-1596.9,0.00048493,30]
[314608672,1708450318487,-363.57401023,0.00048493,30]
[314608673,1708450318497,-1523.79,0.00048493,30]
[314608674,1708450318506,-1495.71,0.00048493,30]
[314608675,1708450318516,-500.0,0.00048493,30]
[314608676,1708450318526,-500.0,0.00048493,30]
[314608677,1708450318535,-500.0,0.00048493,30]
[314608678,1708450318545,-500.0,0.00048493,30]
[314608679,1708450318554,-500.0,0.00048493,30]
[314608680,1708450318563,-500.0,0.00048493,30]
[314608681,1708450318573,-500.0,0.00048493,30]
[314608682,1708450318582,-1097.5,0.00048493,30]
[314608683,1708450318592,-500.0,0.00048493,30]
[314608684,1708450318602,-500.0,0.00048493,30]
[314608685,1708450318612,-500.0,0.00048493,30]
[314608686,1708450318622,-585.84,0.00048493,30]
[314608687,1708450318633,-500.0,0.00048493,30]
[314608688,1708450318643,-500.0,0.00048493,30]
[314608689,1708450318652,-321.34,0.00048493,30]
[314608690,1708450318661,-500.0,0.00048493,30]
[314608691,1708450318671,-500.0,0.00048493,30]
[314608692,1708450318680,-500.0,0.00048493,30]
[314608693,1708450318690,-500.0,0.00048493,30]
[314608694,1708450318699,-500.0,0.00048493,30]
[314608695,1708450318709,-500.0,0.00048493,30]
[314608696,1708450318718,-500.0,0.00048493,30]
[314608697,1708450318728,-500.0,0.00048493,30]
[314608698,1708450318737,-500.0,0.00048493,30]
[314608699,1708450318746,-500.0,0.00048493,30]
[314608700,1708450318756,-500.0,0.00048493,30]
[314608701,1708450318765,-500.0,0.00048493,30]
[314608702,1708450318775,-556.21,0.00048493,30]
[314608703,1708450318784,-500.0,0.00048493,30]
[314608704,1708450318793,-500.0,0.00048493,30]
[314608705,1708450318803,-606.38469841,0.00048493,30]
[314608706,1708450318813,-500.0,0.00048493,30]
[314608707,1708450318822,-500.0,0.00048493,30]
[314608708,1708450318831,-480.49224171,0.00048493,30]
[314608709,1708450318840,-500.0,0.00048493,30]
[314608710,1708450318850,-500.0,0.00048493,30]
[314608711,1708450318859,-500.0,0.00048493,30]
[314608712,1708450318868,-500.0,0.00048493,30]
[314608713,1708450318880,-1109.89,0.00048493,30]
[314608714,1708450318890,-500.0,0.00048493,30]
[314608715,1708450318901,-500.0,0.00048493,30]
[314608716,1708450318912,-500.0,0.00048493,30]
[314608717,1708450318922,-500.0,0.00048493,30]
[314608718,1708450318932,-500.0,0.00048493,30]
[314608719,1708450318941,-990.69,0.00048493,30]
[314608720,1708450318951,-500.0,0.00048493,30]
[314608721,1708450318961,-500.0,0.00048493,30]
[314608722,1708450318971,-500.0,0.00048493,30]
[314608723,1708450318981,-627.6,0.00048493,30]
[314608724,1708450318990,-500.0,0.00048493,30]
[314608725,1708450319000,-500.0,0.00048493,30]
[314608726,1708450319010,-2790.94,0.00048493,30]
[314608727,1708450319019,-872.54,0.00048493,30]
[314608728,1708450319029,-274.17168145,0.00048493,30]
[314608729,1708450319038,-500.0,0.00048493,30]
[314608730,1708450319048,-500.0,0.00048493,30]
[314608731,1708450319058,-500.0,0.00048493,30]
[314608732,1708450319067,-500.0,0.00048493,30]
[314608733,1708450319077,-500.0,0.00048493,30]
[314608734,1708450319087,-500.0,0.00048493,30]
[314608735,1708450319096,-500.0,0.00048493,30]
[314608736,1708450319106,-498.83293111,0.00048493,30]
[314608737,1708450319116,-500.0,0.00048493,30]
[314608738,1708450319130,-500.0,0.00048493,30]
[314608739,1708450319139,-584.12,0.00048493,30]
[314608740,1708450319149,-500.0,0.00048493,30]
[314608741,1708450319158,-642.66,0.00048493,30]
[314608742,1708450319168,-587.26529725,0.00048493,30]
[314608743,1708450319178,-500.0,0.00048493,30]
[314608744,1708450319190,-500.0,0.00048493,30]
[314608745,1708450319224,-500.0,0.00048493,30]
[314608746,1708450319234,-500.0,0.00048493,30]
[314608747,1708450319243,-500.0,0.00048493,30]
[314608748,1708450319254,-500.0,0.00048493,30]
[314608749,1708450319263,-500.0,0.00048493,30]
[314608750,1708450319274,-500.0,0.00048493,30]
[314608751,1708450319284,-506.93,0.00048493,30]
[314608752,1708450319294,-500.0,0.00048493,30]
[314608753,1708450319305,-500.0,0.00048493,30]
[314608754,1708450319314,-500.0,0.00048493,30]
[314608755,1708450319323,-500.0,0.00048493,30]
[314608756,1708450319333,-500.0,0.00048493,30]
[314608757,1708450319342,-500.0,0.00048493,30]
[314608758,1708450319352,-500.0,0.00048493,30]
[314608759,1708450319362,-713.45,0.00048493,30]
[314608760,1708450319372,-500.0,0.00048493,30]
[314608761,1708450319386,-500.0,0.00048493,30]
[314608762,1708450319396,-2162.43,0.00048493,30]
[314608763,1708450319405,-500.0,0.00048493,30]
[314608764,1708450319415,-500.0,0.00048493,30]
[314608765,1708450319424,-500.0,0.00048493,30]
[314608766,1708450319434,-500.0,0.00048493,30]
[314608767,1708450319444,-552.52,0.00048493,30]
[314608768,1708450319454,-875.54,0.00048493,30]
[314608769,1708450319463,-500.0,0.00048493,30]
[314608770,1708450319472,-500.0,0.00048493,30]
[314608771,1708450319482,-584.88,0.00048493,30]
[314608772,1708450319492,-500.0,0.00048493,30]
[314608773,1708450319501,-500.0,0.00048493,30]
[314608774,1708450319511,-530.19,0.00048493,30]
[314608775,1708450319521,-500.0,0.00048493,30]
[314608776,1708450319531,-500.0,0.00048493,30]
[314608777,1708450319540,-500.0,0.00048493,30]
[314608778,1708450319551,-500.0,0.00048493,30]
[314608779,1708450319561,-500.0,0.00048493,30]
[314608780,1708450319571,-544.97529707,0.00048493,30]
[314608781,1708450319580,-10000.0,0.000485,5]
[314608782,1708450319589,-295.0,0.000485,38]
[314608783,1708450319598,-200.0,0.000485,25]
[314608784,1708450319607,-154.82722731,0.00048517,30]
[314608785,1708450319617,-185.10189945,0.00048551,30]
[314608786,1708450319628,-635.62,0.00048556,120]
[314608787,1708450319637,-152.0,0.00048557,4]
[314608788,1708450319647,-159.75125406,0.00048572,30]
[314608789,1708450319656,-166.66666667,0.00048575,60]
[314608790,1708450319666,-150.0,0.00048591,8]
[314608791,1708450319675,-1687.61,0.00048594,120]
[314608792,1708450319684,-150.0,0.00048595,30]
[314608793,1708450319694,-500.0,0.0004862,90]
[314608794,1708450319703,-196.35429008,0.00048625,30]
[314608795,1708450319713,-156.08,0.00048626,2]
[314608796,1708450319722,-600.0,0.0004863,7]
[314608797,1708450319731,-154.33839749,0.00048635,30]
[314608798,1708450319741,-182.45349069,0.0004865,60]
[314608799,1708450319750,-5168.1838807,0.00048654,30]
[314608800,1708450319759,-158.14,0.00048659,2]
[314608801,1708450319769,-159.75125406,0.00048661,30]
[314608802,1708450319778,-6761.4,0.00048683,30]
[314608803,1708450319787,-6761.4,0.00048683,30]
[314608804,1708450319796,-1694.27651936,0.00048686,4]
[314608805,1708450319806,-10000.0,0.00048709,5]
[314608806,1708450319815,-154.33839749,0.00048736,30]
[314608807,1708450319825,-150.0,0.00048738,8]
[314608808,1708450319834,-150.0,0.00048742,30]
[314608809,1708450319844,-153.06599981,0.00048746,39]
[314608810,1708450319853,-150.72003919,0.00048764,30]
[314608811,1708450319862,-608.03,0.00048767,30]
[314608812,1708450319871,-500.0,0.00048767,30]
[314608813,1708450319883,-500.0,0.00048767,30]
[314608814,1708450319892,-500.0,0.00048767,30]
[314608815,1708450319901,-606.04,0.00048767,30]
[314608816,1708450319911,-500.0,0.00048767,30]
[314608817,1708450319920,-517.58227991,0.00048767,30]
[314608818,1708450319929,-173.20951786,0.00048767,30]
[314608819,1708450319939,-418.58613621,0.00048767,30]
[314608820,1708450319948,-575.44101823,0.00048767,30]
[314608821,1708450319958,-391.98317159,0.00048767,30]
[314608822,1708450319968,-186.97,0.00048767,30]
[314608823,1708450319978,-500.0,0.00048767,30]
[314608824,1708450319988,-193.76,0.00048767,30]
[314608825,1708450319997,-500.0,0.00048767,30]
[314608826,1708450320006,-500.0,0.00048767,30]
[314608827,1708450320016,-500.0,0.00048767,30]
[314608828,1708450320026,-500.0,0.00048767,2]
[314608829,1708450320036,-1441.53,0.00048767,30]
[314608830,1708450320046,-500.0,0.00048767,30]
[314608831,1708450320055,-621.36,0.00048767,30]
[314608832,1708450320065,-500.0,0.00048767,30]
[314608833,1708450320075,-500.0,0.00048767,30]
[314608834,1708450320085,-500.0,0.00048767,30]
[314608835,1708450320094,-273.61175009,0.00048767,30]
[314608836,1708450320104,-500.0,0.00048767,30]
[314608837,1708450320114,-500.0,0.00048767,30]
[314608838,1708450320123,-500.0,0.00048767,30]
[314608839,1708450320135,-500.0,0.00048767,30]
[314608840,1708450320145,-159.734733,0.00048767,14]
[314608841,1708450320155,-159.734733,0.00048767,14]
[314608842,1708450320164,-500.0,0.00048767,30]
[314608843,1708450320174,-500.0,0.00048767,30]
[314608844,1708450320183,-500.0,0.00048767,30]
[314608845,1708450320193,-500.0,0.00048767,30]
[314608846,1708450320202,-500.0,0.00048767,30]
[314608847,1708450320211,-500.0,0.00048767,30]
[314608848,1708450320221,-547.20419848,0.00048767,30]
[314608849,1708450320230,-500.0,0.00048767,30]
[314608850,1708450320239,-1270.73,0.00048767,30]
[314608851,1708450320249,-500.0,0.00048767,30]
[314608852,1708450320260,-500.0,0.00048767,30]
[314608853,1708450320270,-500.0,0.00048767,30]
[314608854,1708450320279,-500.0,0.00048767,30]
[314608855,1708450320288,-500.0,0.00048767,30]
[314608856,1708450320299,-500.0,0.00048767,30]
[314608857,1708450320309,-566.097211,0.00048767,14]
[314608858,1708450320318,-566.097211,0.00048767,14]
[314608859,1708450320330,-273.22050765,0.00048767,30]